fUSD/lending_fUSD_20260413
["ID","MTS","AMOUNT","RATE_DAILY","PERIOD"]
[420352685,1776013833872,-500.0,0.00014677,2]
[420352686,1776013833889,-500.0,0.00014677,2]
[420352687,1776013833900,-500.0,0.00014677,2]
[420352688,1776013833909,-500.0,0.00014677,2]
[420352689,1776013833918,-500.0,0.00014678,2]
[420352690,1776013833930,-500.0,0.00014678,2]
[420352691,1776013833941,-324.75993221,0.00014678,2]
[420352692,1776013833950,-224.01643348,0.00014678,2]
[420352693,1776013833959,-163.46121513,0.00014678,2]
[420352694,1776013833970,-192.12774945,0.00014678,2]
[420352695,1776013833979,-150.0,0.00014678,2]
[420352696,1776013833988,-500.0,0.00014678,2]
[420352697,1776013833997,-500.0,0.00014678,2]
[420352698,1776013834014,-500.0,0.00014678,2]
[420352699,1776013834025,-369.45472881,0.00014678,2]
[420352700,1776013834035,-500.0,0.00014678,2]
[420352701,1776013834050,-86252.11776026,0.00014679,2]
[420352702,1776013834063,-32364.07548846,0.00014679,2]
[420352703,1776013834076,-4172.63979632,0.00014679,2]
[420352704,1776013834150,-30112.05632952,0.00014679,2]
[420352705,1776013834165,-2922.36076613,0.00014679,2]
[420352706,1776013834190,-1933.86916611,0.00014679,2]
[420352707,1776013834201,-571.68055395,0.00014679,2]
[420352708,1776013834245,-1271.14161176,0.00014679,2]
[420352709,1776013834260,-1009.784997,0.00014679,2]
[420352710,1776013834277,-1605.99198305,0.00014679,2]
[420352717,1776013838515,-317.10030081,0.00014679,2]
[420352731,1776013838716,-1313.60996539,0.00014679,2]
[420352734,1776013838750,-11979.75265951,0.00014679,2]
[420352736,1776013838784,-1364.2629872,0.00014679,2]
[420352738,1776013838800,-4134.16891772,0.00014679,2]
[420352741,1776013838843,-451.15504761,0.00014679,2]
[420352837,1776013840082,-2626.00107706,0.00014679,2]
[420352844,1776013840403,-463890.45349214,0.00014679,2]
[420352846,1776013840436,-33047.9748,0.00014679,2]
[420352848,1776013840451,-1061712.80535736,0.00014679,2]
[420352868,1776013840764,-4368.552554,0.00014679,2]
[420352870,1776013840780,-2801.30178774,0.00014679,2]
[420352876,1776013840856,-743.26081307,0.00014679,2]
[420352878,1776013840872,-535.94538832,0.00014679,2]
[420353089,1776013845655,-4813.38169941,0.00014679,2]
[420353090,1776013845736,-243185.0938001,0.00014679,2]
[420353091,1776013845750,-1000.0,0.00014679,2]
[420353092,1776013845760,-153.63277467,0.00014679,2]
[420353093,1776013845777,-2600.0,0.000147,5]
[420353094,1776013845791,-1296.15,0.00014706,2]
[420353095,1776013845803,-199.81378667,0.00014778,2]
[420353096,1776013845818,-3219.7935635,0.00014779,2]
[420353097,1776013845831,-156686.5159762,0.00014779,2]
[420353098,1776013845842,-2274.5561842,0.00014779,2]
[420353099,1776013845853,-211.57312332,0.00014779,2]
[420353100,1776013845864,-283.89130182,0.00014779,2]
[420353101,1776013845878,-5200.0,0.000148,5]
[420353102,1776013845891,-7900.0,0.000149,5]
[420353103,1776013845902,-166.66,0.00014903,2]
[420353104,1776013845913,-271.07492803,0.00014985,2]
[420353105,1776013845925,-163.0,0.00015068,2]
[420353106,1776013845939,-2000.0,0.00015087,2]
[420353107,1776013845954,-152.0,0.00015223,7]
[420353108,1776013845965,-152.0,0.00015223,7]
[420353109,1776013845981,-152.0,0.00015223,7]
[420353110,1776013845991,-154.89,0.00015271,2]
[420353111,1776013846000,-200.0,0.000153,2]
[420353112,1776013846014,-166.66,0.00015365,2]
[420353113,1776013846028,-430.65,0.00015471,2]
[420353114,1776013846038,-823.0,0.00015737,2]
[420353115,1776013846051,-166.66,0.00015826,2]
[420353116,1776013846069,-10500.0,0.000159,5]
[420353117,1776013846079,-151.0,0.000159,2]
[420353118,1776013846088,-150.47806526,0.000159,2]
[420353119,1776013846116,-336.0333771,0.000159,2]
[420353121,1776013846126,-152.1622225,0.000159,2]
[420353123,1776013846139,-173.44761724,0.000159,2]
[420353125,1776013846165,-500.0,0.00015973,2]
[420353127,1776013846174,-500.0,0.00015973,2]
[420353129,1776013846189,-500.0,0.00015973,2]
[420353131,1776013846199,-500.0,0.00015973,2]
[420353133,1776013846224,-560.33725224,0.00015973,2]
[420353135,1776013846234,-500.0,0.00015973,2]
[420353137,1776013846250,-500.0,0.00015973,2]
[420353139,1776013846273,-500.0,0.00015973,2]
[420353141,1776013846282,-500.0,0.00015973,2]
[420353143,1776013846310,-370.42991827,0.00015973,2]
[420353144,1776013846326,-500.0,0.00015973,2]
[420353146,1776013846338,-500.88471616,0.00015973,2]
[420353148,1776013846358,-500.0,0.00015973,2]
[420353150,1776013846372,-250.0,0.00016,2]
[420353151,1776013846395,-249.98,0.00016,2]
[420353152,1776013846410,-552704.93339732,0.00016,2]
[420353154,1776013846424,-151.0,0.00016,2]
[420353155,1776013846446,-200.0,0.00016043,2]
[420353158,1776013846456,-29999.99,0.00016116,2]
[420353160,1776013846476,-22060.99,0.00016116,2]
[420353161,1776013846495,-168.0,0.00016238,2]
[420353162,1776013846507,-166.66,0.00016288,2]
[420353163,1776013846526,-163.0,0.00016438,2]
[420353164,1776013846545,-500.0,0.00016521,2]
[420353165,1776013846555,-232.89748446,0.00016521,2]
[420353166,1776013846571,-500.0,0.00016521,2]
[420353167,1776013846590,-349.56796848,0.00016521,2]
[420353168,1776013846599,-1000.0,0.00016521,2]
[420353169,1776013846612,-154.89,0.00016543,2]
[420353170,1776013846625,-168.0,0.00016588,2]
[420353171,1776013846636,-168.0,0.00016622,2]
[420353172,1776013846646,-34961.4874028,0.00016694,2]
[420353173,1776013846661,-187.22,0.00016712,2]
[420353174,1776013846671,-2000.0,0.00016764,2]
[420353175,1776013846682,-3240.0,0.0001694,2]
[420353176,1776013846692,-168.0,0.00016972,2]
[420353177,1776013846702,-160.0,0.00017043,2]
[420353178,1776013846715,-160.3040822,0.00017068,2]
[420353179,1776013846727,-1500.0,0.00017068,2]
[420353180,1776013846737,-254.756046,0.00017075,7]
[420353181,1776013846748,-233.548073,0.00017075,7]
[420353182,1776013846758,-7800.9622832,0.00017121,2]
[420353183,1776013846775,-1394.80221983,0.0001721,2]
[420353184,1776013846785,-1762.22341159,0.0001721,2]
[420353185,1776013846797,-168.0,0.00017265,2]
[420353186,1776013846812,-168.0,0.00017422,2]
[420353187,1776013846822,-193541.23138282,0.00017423,2]
[420353188,1776013846844,-34924.28267363,0.00017423,2]
[420353189,1776013846861,-151.0,0.00017423,2]
[420353190,1776013846870,-2000.0,0.00017616,2]
[420353191,1776013846881,-377.42,0.00017728,2]
[420353192,1776013846894,-154.89,0.00017816,2]
[420353193,1776013846917,-13200.0,0.000179,6]
[420353194,1776013846928,-645799.6025988,0.00018,2]
[420353195,1776013846968,-5508.00000712,0.00018,2]
[420353196,1776013847012,-3198.43888212,0.00018,2]
[420353197,1776013937702,1054.97,0.00027318,120]
[420353200,1776013981305,211.602147,0.00029746,120]
[420353201,1776014115934,164.603416,0.00026849,120]
[420353202,1776014178527,500.0,0.0003013,120]
[420353204,1776014737183,-150.0,0.0001436,2]
[420353205,1776014737219,-161.93848259,0.00014431,2]
[420353206,1776014843143,-380.72125472,0.00014431,2]
[420353212,1776015033782,-183.0,0.0001443,2]
[420353213,1776015033794,-300.0,0.0001443,2]
[420353214,1776015033806,-801.18884217,0.0001443,2]
[420353215,1776015033838,-398.81115783,0.0001443,2]
[420353216,1776015033850,-300.0,0.0001443,2]
[420353217,1776015033862,-4686.35651505,0.00014431,2]
[420353218,1776015033881,-14235.18828495,0.00014431,2]
[420353219,1776015033890,-304.7984,0.00014432,2]
[420353220,1776015033909,-1000.0,0.00014579,2]
[420353221,1776015033924,-763.02594429,0.00015153,2]
[420353222,1776015033938,-512.90085166,0.00015153,2]
[420353223,1776015033979,-341.348914,0.00015153,2]
[420353224,1776015033993,-7843.49669005,0.00015153,2]
[420353225,1776015034009,-152.3992,0.00015154,2]
[420353226,1776015034022,-301.0,0.00015802,2]
[420353227,1776015034039,-317.0,0.00015873,2]
[420353228,1776015034053,-300.0,0.00015874,2]
[420353229,1776015034083,-200.0,0.00015874,2]
[420353230,1776015034095,-1447.024134,0.00015874,2]
[420353231,1776015034106,-250.0,0.00016,2]
[420353232,1776015034134,-250.01,0.00016,2]
[420353233,1776015034148,-2553.96816448,0.00016,5]
[420353234,1776015034169,-752.75,0.0001634,2]
[420353235,1776015034182,-200.0,0.00016416,2]
[420353236,1776015034219,-1890.2,0.00016462,2]
[420353237,1776015034250,-380.08,0.00016496,2]
[420353238,1776015034265,-177.4,0.00016699,2]
[420353239,1776015034295,-151.0,0.00016912,2]
[420353240,1776015034330,-500.0,0.00016912,2]
[420353241,1776015034353,-151.0,0.00016912,2]
[420353242,1776015034362,-500.0,0.00016912,2]
[420353243,1776015034374,-151.0,0.00016912,2]
[420353244,1776015034393,-500.0,0.00016912,2]
[420353245,1776015034404,-151.0,0.00016912,2]
[420353246,1776015034431,-500.0,0.00016912,2]
[420353247,1776015034457,-500.0,0.00016912,2]
[420353248,1776015034468,-500.0,0.00016912,2]
[420353249,1776015034492,-500.0,0.00016912,2]
[420353250,1776015034502,-204.46973327,0.00016912,2]
[420353251,1776015034530,-295.53026673,0.00016912,2]
[420353252,1776015034541,-500.0,0.00016912,2]
[420353253,1776015034551,-115.37304082,0.00016912,2]
[420353260,1776015039592,-384.62695918,0.00016912,2]
[420353261,1776015039604,-286.4461262,0.00016912,2]
[420353262,1776015039643,-213.5538738,0.00016912,2]
[420353263,1776015039659,-500.0,0.00016912,2]
[420353264,1776015039674,-500.0,0.00016912,2]
[420353265,1776015039694,-500.0,0.00016912,2]
[420353266,1776015039710,-299.99,0.00016922,4]
[420353267,1776015039727,-17455.14284279,0.00016922,2]
[420353268,1776015039762,-11991.61838017,0.00016922,2]
[420353269,1776015039824,-592.34425861,0.00016922,2]
[420353270,1776015039854,-469.10245822,0.00016922,2]
[420353271,1776015039951,-1000.18778537,0.00016922,2]
[420353272,1776015039979,-865.69,0.00016922,2]
[420353273,1776015039994,-13272.87427484,0.00016922,2]
[420353274,1776015040027,-972.4,0.00016922,2]
[420353275,1776015040038,-518.51,0.00016922,2]
[420353276,1776015040057,-9999.99,0.00016922,2]
[420353277,1776015040077,-499.99,0.00016922,2]
[420353278,1776015040093,-2103.15669039,0.00016922,2]
[420353279,1776015040117,-776.25876514,0.00016922,2]
[420353280,1776015040132,-1401.9124575,0.00016922,2]
[420353281,1776015040148,-1057.47540344,0.00016922,2]
[420353300,1776015041018,-4661.18668353,0.00016922,2]
[420353301,1776015041028,-24999.99,0.00016922,2]
[420353302,1776015041042,-999.99,0.00016922,2]
[420353303,1776015041061,-501.12204549,0.00016973,2]
[420353304,1776015041070,-500.0,0.00016973,2]
[420353305,1776015041080,-150.0,0.00017,2]
[420353306,1776015041095,-340.61728715,0.00017052,2]
[420353307,1776015041105,-3485.3265351,0.00017096,2]
[420353308,1776015041114,-578.20924308,0.00017491,2]
[420353309,1776015041125,-601.3376128,0.00017491,2]
[420353310,1776015041145,-301.45296488,0.00017491,2]
[420353311,1776015041156,-6546.5103991,0.00017491,2]
[420353312,1776015041170,-500.0,0.00017491,2]
[420353313,1776015041199,-743.50770149,0.00017491,2]
[420353314,1776015041235,-151.0,0.00017491,2]
[420353315,1776015041260,-411.57624402,0.00017491,2]
[420353316,1776015041282,-288.75734877,0.00017491,2]
[420353317,1776015041299,-174.61919143,0.00017491,2]
[420353318,1776015041345,-500.0,0.00017507,2]
[420353319,1776015041363,-500.0,0.00017546,2]
[420353320,1776015041398,-151.0,0.00017546,2]
[420353321,1776015041409,-500.0,0.00017601,2]
[420353322,1776015041431,-151.0,0.00017601,2]
[420353323,1776015041441,-500.0,0.00017656,2]
[420353324,1776015041451,-201.0,0.00017677,2]
[420353325,1776015041467,-800.0,0.000177,6]
[420353326,1776015041489,-500.0,0.00017711,2]
[420353327,1776015041505,-500.0,0.00017766,2]
[420353328,1776015041514,-500.0,0.00017798,2]
[420353329,1776015041528,-500.0,0.00017798,2]
[420353330,1776015041544,-500.0,0.00017798,2]
[420353331,1776015041554,-347.51338095,0.00017798,2]
[420353332,1776015041565,-500.0,0.00017798,2]
[420353333,1776015041579,-500.0,0.00017798,2]
[420353334,1776015041592,-5000.0,0.000178,2]
[420353335,1776015041606,-535.21591998,0.000178,2]
[420353336,1776015041622,-1115.8417759,0.000178,2]
[420353337,1776015041635,-1191.87345396,0.000178,2]
[420353338,1776015041659,-1600.0,0.000178,6]
[420353339,1776015041669,-177.4,0.00017812,2]
[420353340,1776015041686,-500.0,0.00017821,2]
[420353341,1776015041705,-169.85754936,0.00017831,2]
[420353342,1776015041714,-372.53599829,0.00017873,2]
[420353343,1776015041733,-500.0,0.00017873,2]
[420353344,1776015041745,-500.0,0.00017873,2]
[420353345,1776015041757,-500.0,0.00017873,2]
[420353346,1776015041777,-500.0,0.00017876,2]
[420353347,1776015041790,-232.0,0.00017884,2]
[420353348,1776015041812,-192.38895204,0.0001789,2]
[420353349,1776015041824,-500.0,0.00017899,2]
[420353350,1776015041847,-249.84418905,0.00017899,2]
[420353351,1776015041860,-500.0,0.00017899,2]
[420353352,1776015041882,-199.94580013,0.00017899,2]
[420353353,1776015041894,-339.87332506,0.00017899,2]
[420353354,1776015041904,-592.75185433,0.00017899,2]
[420353355,1776015041914,-459.70442515,0.00017899,2]
[420353356,1776015041932,-502.14529776,0.00017899,2]
[420353357,1776015041942,-209.0,0.000179,5]
[420353358,1776015041951,-28850.71618775,0.000179,2]
[420353359,1776015041972,-42540.50800121,0.000179,2]
[420353360,1776015041985,-533.05365063,0.000179,2]
[420353361,1776015042006,-1323.12656741,0.000179,2]
[420353362,1776015042152,-3038.0997034,0.000179,2]
[420353363,1776015042471,-42.30236164,0.000179,2]
[420353364,1776015042488,-14637.31840052,0.000179,2]
[420353368,1776015045946,-418.67105371,0.000179,2]
[420353369,1776015045968,-954.67114887,0.000179,2]
[420353370,1776015045985,-1480.91707797,0.000179,2]
[420353371,1776015045997,-5511.59999466,0.000179,2]
[420353372,1776015046295,-4257.78251745,0.000179,2]
[420353373,1776015046391,-15560.062563,0.000179,2]
[420353448,1776015050065,-34.65983139,0.000179,2]
[420353449,1776015051299,-10959.49999985,0.000179,2]
[420353452,1776015163626,500.0,0.00029452,120]
[420353453,1776015420207,270.56,0.00030137,120]
[420353459,1776016232330,-700.0,0.000146,5]
[420353460,1776016232342,-129.38668649,0.000147,5]
[420353461,1776016232375,-671.18141117,0.000147,5]
[420353462,1776016232387,-599.43190234,0.000147,5]
[420353463,1776016232409,-169.885,0.00014752,2]
[420353465,1776016232421,-67.09194123,0.00014752,2]
[420353467,1776016232433,-791.02505877,0.00014752,2]
[420353469,1776016232464,-2062.4484,0.00014752,2]
[420353471,1776016232473,-500.0,0.00014778,2]
[420353473,1776016232484,-500.0,0.00014778,2]
[420353475,1776016232519,-549.0,0.00014778,2]
[420353477,1776016232532,-150.0,0.00014778,2]
[420353479,1776016232543,-150.0,0.00014778,2]
[420353481,1776016232568,-200.0,0.00014778,2]
[420353483,1776016232577,-2200.0,0.000148,5]
[420353485,1776016232586,-2900.0,0.000149,5]
[420353487,1776016232603,-5000.0,0.00014953,2]
[420353489,1776016232627,-169.85754936,0.00014953,2]
[420353490,1776016232636,-356.81061332,0.00014953,2]
[420353491,1776016232646,-1409.77872929,0.00014953,2]
[420353492,1776016232655,-1004.25759831,0.00014953,2]
[420353493,1776016232680,-150.85611873,0.00014953,2]
[420353494,1776016232690,-150.0,0.00015,2]
[420353495,1776016232699,-424.024,0.00015014,2]
[420353496,1776016232713,-195.94095604,0.00015043,2]
[420353497,1776016232724,-500.0,0.00015044,2]
[420353498,1776016232733,-500.0,0.00015044,2]
[420353499,1776016232742,-151.0,0.00015044,2]
[420353500,1776016232755,-151.0,0.00015044,2]
[420353501,1776016232768,-286.22971031,0.00015044,2]
[420353502,1776016232779,-500.0,0.00015052,2]
[420353503,1776016232788,-409.70442515,0.00015052,2]
[420353504,1776016232798,-500.0,0.00015052,2]
[420353505,1776016232808,-500.0,0.00015052,2]
[420353506,1776016232821,-500.0,0.00015052,2]
[420353507,1776016232831,-500.0,0.00015052,2]
[420353508,1776016232842,-500.0,0.00015052,2]
[420353509,1776016232855,-500.0,0.00015052,2]
[420353510,1776016232877,-500.0,0.00015052,2]
[420353511,1776016232887,-500.0,0.00015052,2]
[420353512,1776016232900,-500.0,0.00015052,2]
[420353513,1776016232915,-500.0,0.00015052,2]
[420353514,1776016232926,-500.0,0.00015052,2]
[420353515,1776016232939,-500.0,0.00015052,2]
[420353516,1776016232965,-500.0,0.00015052,2]
[420353517,1776016232975,-500.0,0.00015052,2]
[420353518,1776016232987,-500.0,0.00015052,2]
[420353519,1776016233007,-500.0,0.00015052,2]
[420353520,1776016233016,-500.0,0.00015052,2]
[420353521,1776016233027,-500.0,0.00015052,2]
[420353522,1776016233042,-500.0,0.00015052,2]
[420353523,1776016233052,-500.17385361,0.00015052,2]
[420353524,1776016233062,-500.0,0.00015052,2]
[420353525,1776016233081,-500.0,0.00015052,2]
[420353526,1776016233097,-500.0,0.00015052,2]
[420353527,1776016233107,-500.0,0.00015052,2]
[420353528,1776016233118,-500.0,0.00015052,2]
[420353529,1776016233141,-500.0,0.00015052,2]
[420353530,1776016233151,-500.0,0.00015052,2]
[420353531,1776016233177,-500.0,0.00015052,2]
[420353532,1776016233199,-500.0,0.00015052,2]
[420353533,1776016233211,-500.0,0.00015052,2]
[420353534,1776016233235,-500.0,0.00015052,2]
[420353535,1776016233244,-500.0,0.00015052,2]
[420353536,1776016233254,-500.0,0.00015052,2]
[420353537,1776016233279,-500.0,0.00015052,2]
[420353538,1776016233288,-500.0,0.00015052,2]
[420353539,1776016233298,-500.0,0.00015052,2]
[420353540,1776016233323,-500.0,0.00015052,2]
[420353541,1776016233334,-500.0,0.00015052,2]
[420353542,1776016233345,-500.0,0.00015052,2]
[420353543,1776016233388,-500.0,0.00015052,2]
[420353544,1776016233400,-500.0,0.00015052,2]
[420353545,1776016233734,-500.0,0.00015052,2]
[420353546,1776016233763,-450.01738536,0.00015052,2]
[420353547,1776016233772,-500.0,0.00015052,2]
[420353548,1776016233789,-264.92629803,0.00015052,2]
[420353549,1776016233798,-174.89093234,0.00015052,2]
[420353550,1776016233809,-165.63559769,0.00015052,2]
[420353551,1776016233829,-173.24,0.00015052,2]
[420353552,1776016233842,-500.0,0.00015052,2]
[420353553,1776016233857,-598.29,0.00015052,2]
[420353554,1776016233876,-203114.93582846,0.00015053,2]
[420353570,1776016241147,-1243.77952586,0.00015053,2]
[420353571,1776016241299,-404.22690032,0.00015053,2]
[420353572,1776016241448,-35663.0251872,0.00015053,2]
[420353573,1776016241490,-430987.24866015,0.00015053,2]
[420353574,1776016241506,-22000.0,0.00015053,2]
[420353575,1776016241542,-1806586.78389801,0.00015053,2]
[420353576,1776016241552,-150.0,0.00015053,2]
[420353577,1776016241563,-500.0,0.00015073,2]
[420353578,1776016241584,-550.3869963,0.00015073,2]
[420353579,1776016241594,-500.0,0.00015073,2]
[420353580,1776016241609,-500.0,0.00015073,2]
[420353581,1776016241627,-500.0,0.00015073,2]
[420353582,1776016241637,-500.0,0.00015073,2]
[420353583,1776016241659,-500.0,0.00015073,2]
[420353584,1776016241675,-500.0,0.00015073,2]
[420353585,1776016241684,-316.08390938,0.00015073,2]
[420353587,1776016241700,-2000.0,0.00015073,2]
[420353589,1776016241718,-155.0,0.00015309,2]
[420353591,1776016241733,-24999.99,0.0001531,2]
[420353593,1776016241746,-299.99,0.0001531,2]
[420353594,1776016241762,-9999.99,0.0001531,2]
[420353596,1776016241778,-125187.08,0.0001531,2]
[420353598,1776016241791,-4531.05,0.0001531,2]
[420353600,1776016241805,-9999.99,0.0001531,2]
[420353601,1776016241815,-9999.99,0.0001531,2]
[420353602,1776016241825,-11407.47,0.0001531,2]
[420353603,1776016241844,-5388.65,0.0001531,2]
[420353604,1776016241854,-150.99,0.0001531,2]
[420353605,1776016241864,-313.25,0.0001531,2]
[420353606,1776016241874,-9999.99,0.0001531,2]
[420353607,1776016241893,-999.99,0.0001531,2]
[420353608,1776016241902,-499.99,0.0001531,2]
[420353609,1776016241911,-1581.16,0.0001531,2]
[420353610,1776016241924,-1031.2242,0.00015489,2]
[420353611,1776016241939,-250.0,0.00016,2]
[420353612,1776016241948,-250.0,0.00016,2]
[420353613,1776016241961,-1211.53,0.00016116,2]
[420353614,1776016241973,-7614.2,0.00016116,2]
[420353615,1776016241982,-19999.99,0.00016116,2]
[420353616,1776016241999,-166.05,0.00016508,2]
[420353617,1776016242436,-262.3808947,0.00016773,2]
[420353618,1776016242467,-200.0,0.00016812,2]
[420353619,1776016242478,-423190.17492574,0.00016822,2]
[420353620,1776016242516,-3547.98877568,0.00016822,2]
[420353621,1776016243722,-9182.07279104,0.00016822,2]
[420353622,1776016244083,-102212.32380754,0.00016822,2]
[420353623,1776016244099,-7743.212381,0.00016858,2]
[420353624,1776016244110,-152.1622225,0.00016858,2]
[420353625,1776016244119,-500.0,0.00016873,2]
[420353626,1776016244137,-500.0,0.00016873,2]
[420353627,1776016244147,-2000.0,0.00016958,2]
[420353628,1776016244163,-343.7414,0.00016965,2]
[420353629,1776016244177,-50320.22,0.00017034,2]
[420353631,1776016244188,-154.89,0.00017067,2]
[420353633,1776016244201,-3174.8,0.00017227,2]
[420353635,1776016244220,-214.0,0.00017312,2]
[420353637,1776016244231,-1000.0,0.00017421,2]
[420353639,1776016244243,-1000.0,0.00017421,2]
[420353641,1776016244261,-1409.77872927,0.00017542,2]
[420353642,1776016244283,-1004.25759827,0.00017542,2]
[420353644,1776016244295,-8285.435179,0.0001773,2]
[420353646,1776016244311,-500.0,0.00017735,2]
[420353648,1776016244332,-151.94388858,0.00017735,2]
[420353650,1776016244343,-500.0,0.0001779,2]
[420353651,1776016244391,-1000.0,0.0001779,2]
[420353652,1776016244402,-484.43968884,0.000178,18]
[420353653,1776016244418,-500.0,0.00017845,2]
[420353655,1776016244458,-529478.7317765,0.00017888,2]
[420353656,1776016244493,-3229.2965107,0.00017888,2]
[420353658,1776016244503,-951.2056585,0.00017888,2]
[420353660,1776016244537,-151.0,0.00017888,2]
[420353662,1776016244551,-151.0,0.00017888,2]
[420353664,1776016244586,-500.0,0.00017899,2]
[420353666,1776016244597,-382.46334637,0.00017899,2]
[420353669,1776016244623,-500.0,0.00017899,2]
[420353672,1776016244639,-500.0,0.00017899,2]
[420353675,1776016244653,-500.0,0.00017899,2]
[420353677,1776016244667,-500.0,0.000179,2]
[420353678,1776016244681,-3600.0,0.000179,6]
[420353680,1776016244697,-500.0,0.00017955,2]
[420353682,1776016244723,-1500.0,0.00017968,2]
[420353684,1776016244737,-500.0,0.00017968,2]
[420353686,1776016244747,-146014.30835671,0.00018,2]
[420353688,1776016244764,-176.3109361,0.00018,2]
[420353689,1776016244792,-240.0,0.00018,2]
[420353690,1776016244801,-250.0,0.00018,2]
[420353691,1776016244818,-500.0,0.0001801,2]
[420353692,1776016244838,-166.66,0.00018125,2]
[420353693,1776016244850,-327.55,0.00018259,2]
[420353694,1776016244881,-166.66,0.00018506,2]
[420353695,1776016244892,-2000.0,0.00018516,2]
[420353696,1776016244902,-150.0,0.00018533,5]
[420353697,1776016244924,-152.9657,0.000187,2]
[420353698,1776016244936,-399.10410356,0.00018806,2]
[420353699,1776016244946,-2000.0,0.00018842,2]
[420353700,1776016244966,-166.66,0.00018888,2]
[420353701,1776016244976,-177.4,0.00018925,2]
[420353702,1776016244991,-2000.0,0.00019064,2]
[420353703,1776016245001,-166.05,0.00019232,2]
[420353704,1776016245011,-1118.87122582,0.00019245,2]
[420353705,1776016245028,-166.66,0.0001927,2]
[420353706,1776016245038,-928.0,0.000193,2]
[420353707,1776016245053,-166.66,0.00019651,2]
[420353708,1776016245063,-671.63133333,0.0001969,2]
[420353709,1776016245072,-1000.0,0.000198,2]
[420353710,1776016245082,-200.0,0.0001984,2]
[420353711,1776016245095,-154.89,0.00019912,2]
[420353712,1776016245106,-187067.51071742,0.0002,2]
[420353713,1776016245117,-151.0,0.0002,2]
[420353714,1776016245128,-313.0,0.0002,2]
[420353715,1776016245147,-151.0,0.0002,2]
[420353716,1776016245158,-166.66,0.00020033,2]
[420353717,1776016245169,-177.4,0.00020039,2]
[420353718,1776016245184,-1409.77872927,0.00020131,2]
[420353719,1776016245198,-1004.25759827,0.00020131,2]
[420353720,1776016245214,-1116.0,0.00020258,2]
[420353721,1776016245223,-250.72028972,0.0002044,2]
[420353722,1776016245241,-29328.80265575,0.0002063,2]
[420353723,1776016245254,-160.7772061,0.0002068,2]
[420353724,1776016245266,-2000.0,0.00020726,2]
[420353725,1776016245285,-57752.81899472,0.0002106,2]
[420353727,1776016246192,-151.0,0.0002063,2]
[420353728,1776016246209,-242.32370825,0.0002106,2]
[420353729,1776016246621,-2392.81052465,0.0002106,2]
[420353738,1776016803010,-300.0,0.00011899,2]
[420353739,1776016803043,-1200.0,0.00011899,2]
[420353740,1776016803074,-300.0,0.00011899,2]
[420353741,1776016803120,-300.0,0.00011899,2]
[420353742,1776016803163,-1478.89990471,0.000119,2]
[420353743,1776016813753,-4429.0,0.000119,2]
[420353748,1776017125254,3437.0,0.00027945,120]
[420353749,1776017138961,-150.0,0.00010698,2]
[420353750,1776017139010,-100.0,0.00010698,2]
[420353766,1776017357255,-800.0,0.000106,3]
[420353767,1776017357295,-300.0,0.00010693,2]
[420353768,1776017357325,-150.0,0.00010693,2]
[420353769,1776017357351,-200.0,0.00010694,2]
[420353770,1776017357376,-500.0,0.00010694,2]
[420353771,1776017357409,-151.0,0.00010694,2]
[420353772,1776017357438,-151.0,0.00010694,2]
[420353773,1776017357467,-500.0,0.00010694,2]
[420353774,1776017357505,-500.0,0.00010694,2]